bitfinex-derivatives/quotes_BTCF0:USTF0_20250330
["timestamp","ask_amount","ask_price","bid_price","bid_amount"]
[1743320051028,0.20404801,83265.0,83264.0,8e-05]
[1743320056341,0.1201349,83263.0,83255.0,0.0302]
[1743320056539,0.1201349,83263.0,83261.0,8e-05]
[1743320056540,0.1208949,83263.0,83261.0,8e-05]
[1743320058550,0.1238949,83263.0,83261.0,8e-05]
[1743320059549,0.1268949,83263.0,83261.0,8e-05]
[1743320065349,0.24699698,83263.0,83261.0,8e-05]
[1743320065549,0.120145,83256.0,83255.0,0.0302]
[1743320065750,0.120905,83256.0,83255.0,0.03084]
[1743320065959,0.120905,83256.0,83255.0,0.0302]
[1743320066452,0.184105,83256.0,83255.0,0.0302]
[1743320066761,0.1201494,83253.0,83252.0,8e-05]
[1743320066956,0.1209494,83253.0,83252.0,8e-05]
[1743320067361,0.1201566,83248.0,83247.0,0.00018012]
[1743320067658,0.4817166,83248.0,83247.0,0.00018012]
[1743320068251,0.5446166,83248.0,83247.0,0.00018012]
[1743320068554,0.5446166,83248.0,83247.0,0.03298012]
[1743320069758,0.5446166,83248.0,83247.0,0.03398012]
[1743320069955,0.5446166,83248.0,83247.0,0.03498012]
[1743320071557,0.9633166,83248.0,83247.0,0.03498012]
[1743320071757,0.6025166,83248.0,83247.0,0.03498012]
[1743320071951,0.9633166,83248.0,83247.0,0.03498012]
[1743320076261,0.98257403,83248.0,83247.0,0.03498012]
[1743320078864,0.98557403,83248.0,83247.0,0.03398012]
[1743320079659,0.98557403,83248.0,83247.0,0.03298012]
[1743320079860,1.13392768,83248.0,83247.0,0.03298012]
[1743320080262,1.1339148,83248.0,83247.0,0.03298012]
[1743320080966,1.1339148,83248.0,83243.0,0.00048052]
[1743320080967,1.19396082,83248.0,83243.0,0.00048052]
[1743320081171,0.0600797,83246.0,83227.0,0.36128061]
[1743320081371,0.0600797,83246.0,83227.0,0.48146671]
[1743320081372,0.1201855,83228.0,83227.0,0.48146671]
[1743320081573,0.12968655,83228.0,83227.0,0.48210671]
[1743320082271,0.1201855,83228.0,83227.0,0.48210671]
[1743320082771,0.1201855,83228.0,83227.0,0.51270671]
[1743320082972,0.1211855,83228.0,83227.0,0.51270671]
[1743320084072,0.1220255,83228.0,83227.0,0.51270671]
[1743320084270,0.1211855,83228.0,83227.0,0.57430671]
[1743320084472,0.1221855,83228.0,83227.0,0.57430671]
[1743320086471,0.1221855,83228.0,83227.0,0.45412061]
[1743320086671,0.1229455,83228.0,83227.0,0.45412061]
[1743320086979,0.1221855,83228.0,83227.0,0.45412061]
[1743320087663,0.1221855,83228.0,83227.0,1.95412061]
[1743320087860,0.1221855,83228.0,83227.0,2.07430751]
[1743320092864,0.1221855,83228.0,83227.0,1.71350751]
[1743320093287,0.1221855,83228.0,83227.0,2.07430751]
[1743320094376,0.1221855,83228.0,83227.0,1.71350751]
[1743320094681,0.1221855,83228.0,83227.0,2.07430751]
[1743320095381,0.1221855,83228.0,83227.0,1.71350751]
[1743320095570,0.1221855,83228.0,83227.0,2.07430751]
[1743320097771,0.002,83228.0,83227.0,2.07430751]
[1743320098172,0.1221855,83228.0,83227.0,2.07430751]
[1743320098778,0.1221855,83228.0,83227.0,2.46499613]
[1743320098977,0.002,83228.0,83227.0,2.46499613]
[1743320099179,0.1221855,83228.0,83227.0,2.46499613]
[1743320103682,0.1221855,83228.0,83227.0,2.58043613]
[1743320103986,0.1862855,83228.0,83227.0,2.58043613]
[1743320108485,0.1862855,83228.0,83227.0,2.21963613]
[1743320108791,0.1862855,83228.0,83227.0,2.58043613]
[1743320108989,0.0661,83228.0,83227.0,2.58043613]
[1743320109300,0.1862855,83228.0,83227.0,2.58043613]
[1743320110584,0.1862855,83228.0,83227.0,2.21963613]
[1743320111091,0.1862855,83228.0,83227.0,2.58043613]
[1743320111292,0.1862855,83228.0,83227.0,2.21963613]
[1743320111592,0.1862855,83228.0,83227.0,2.58043613]
[1743320113283,0.0661,83228.0,83227.0,2.58043613]
[1743320113885,0.1862855,83228.0,83227.0,2.58043613]
[1743320117194,0.1862855,83228.0,83227.0,2.58007613]
[1743320118798,0.1862855,83228.0,83227.0,2.21927613]
[1743320118992,0.1862855,83228.0,83227.0,2.58007613]
[1743320119491,0.1862855,83228.0,83227.0,2.21927613]
[1743320119689,0.1862855,83228.0,83227.0,2.58007613]
[1743320121691,0.0661,83228.0,83227.0,2.58007613]
[1743320125799,0.0661,83228.0,83227.0,2.21927613]
[1743320126101,0.0661,83228.0,83227.0,2.58007613]
[1743320127005,0.0661,83228.0,83227.0,3.00797012]
[1743320127205,0.1862855,83228.0,83227.0,3.00797012]
[1743320127406,0.1862855,83228.0,83227.0,2.80069012]
[1743320127607,0.1862855,83228.0,83227.0,2.91569012]
[1743320128993,0.1862855,83228.0,83227.0,2.79550322]
[1743320129894,0.1862855,83228.0,83227.0,2.91569012]
[1743320130097,0.1862855,83228.0,83227.0,2.48779613]
[1743320130294,0.19821822,83228.0,83227.0,2.25260923]
[1743320130495,0.1862855,83228.0,83227.0,2.36756923]
[1743320130695,0.19854692,83228.0,83227.0,2.36756923]
[1743320132209,0.19854692,83228.0,83227.0,2.00676923]
[1743320132415,0.19854692,83228.0,83227.0,2.36756923]
[1743320133011,0.19854692,83228.0,83227.0,1.97688061]
[1743320133310,0.1862855,83228.0,83227.0,1.97688061]
[1743320133807,0.19847669,83228.0,83227.0,1.97688061]
[1743320135206,0.1862855,83228.0,83227.0,1.97688061]
[1743320136610,0.1862855,83228.0,83227.0,2.26488835]
[1743320137712,0.1862855,83228.0,83227.0,2.38507525]
[1743320137911,0.1862855,83228.0,83227.0,2.26488835]
[1743320138612,0.1862855,83228.0,83227.0,2.38507525]
[1743320139608,0.1862855,83228.0,83227.0,2.09706751]
[1743320140014,0.1862855,83228.0,83227.0,1.97688061]
[1743320140912,0.1862855,83228.0,83227.0,1.61608061]
[1743320141111,0.1862855,83228.0,83227.0,1.97688061]
[1743320141815,0.1862855,83228.0,83227.0,2.09706751]
[1743320144316,0.1862855,83228.0,83227.0,1.73626751]
[1743320144509,0.1862855,83228.0,83227.0,2.09706751]
[1743320144720,0.1862855,83228.0,83227.0,1.73626751]
[1743320144908,0.1862855,83228.0,83227.0,2.09706751]
[1743320145613,0.1862855,83228.0,83227.0,1.73626751]
[1743320145815,0.1862855,83228.0,83227.0,2.09706751]
[1743320150314,0.1862855,83228.0,83227.0,1.80066751]
[1743320150515,0.1862855,83228.0,83227.0,2.16146751]
[1743320152110,0.1862855,83228.0,83227.0,1.80066751]
[1743320152320,0.1862855,83228.0,83227.0,2.16146751]
[1743320155620,0.1862855,83228.0,83227.0,2.44947525]
[1743320157417,0.1862855,83228.0,83227.0,2.32928835]
[1743320157615,0.1862855,83228.0,83227.0,2.26488835]
[1743320157818,0.1862855,83228.0,83227.0,1.78912835]
[1743320158013,0.1870455,83228.0,83227.0,0.28912835]
[1743320158818,0.1870455,83228.0,83227.0,0.00112061]
[1743320159825,0.5478455,83228.0,83227.0,0.00112061]
[1743320160117,0.1870455,83228.0,83227.0,0.00112061]
[1743320164423,0.1870455,83228.0,83227.0,0.00048061]
[1743320166529,0.1870455,83228.0,83227.0,0.00112061]
[1743320170829,0.1870455,83228.0,83227.0,0.00048061]
[1743320182331,0.5478455,83228.0,83227.0,0.00048061]
[1743320183937,0.5478455,83228.0,83227.0,0.03188061]
[1743320184435,0.5478455,83228.0,83227.0,0.06348061]
[1743320185230,0.5478455,83228.0,83227.0,0.06416061]
[1743320185735,0.5478455,83228.0,83227.0,0.09706061]
[1743320185935,0.5478455,83228.0,83227.0,0.00116061]
[1743320186130,0.5783455,83228.0,83227.0,0.00116061]
[1743320186330,0.5783455,83228.0,83221.0,0.21612129]
[1743320186331,0.060095,83225.0,83221.0,0.21612129]
[1743320186533,0.1201941,83222.0,83221.0,0.21676129]
[1743320186733,0.12115411,83222.0,83221.0,0.21668129]
[1743320188742,0.12515411,83222.0,83221.0,0.00064]
[1743320189147,0.12515411,83222.0,83221.0,0.06334]
[1743320189349,0.12515411,83222.0,83221.0,0.03314]
[1743320189748,0.12515411,83222.0,83221.0,0.00064]
[1743320189956,0.120197,83220.0,83219.0,0.28831528]
[1743320190158,0.13016712,83220.0,83219.0,0.28895528]
[1743320190549,0.19446712,83220.0,83219.0,0.28895528]
[1743320191451,0.19746712,83220.0,83219.0,0.28895528]
[1743320192059,0.20046712,83220.0,83219.0,0.28895528]
[1743320192751,0.20046712,83220.0,83219.0,0.32195528]
[1743320192958,0.20046712,83220.0,83219.0,0.03390023]
[1743320193162,0.20046712,83220.0,83219.0,0.03326023]
[1743320193744,0.56126712,83220.0,83219.0,0.03326023]
[1743320199956,0.56126712,83220.0,83219.0,0.00026023]
[1743320200259,0.59356712,83220.0,83219.0,0.00026023]
[1743320205165,0.1202086,83212.0,83209.0,0.0623]
[1743320205460,0.48196861,83212.0,83211.0,0.0014407]
[1743320205860,0.48196861,83212.0,83211.0,0.0336407]
[1743320206964,0.4941332,83212.0,83211.0,0.0336407]
[1743320207152,0.4951332,83212.0,83211.0,0.0336407]
[1743320207461,0.4961332,83212.0,83211.0,0.0336407]
[1743320208361,0.4961332,83212.0,83211.0,0.0326807]
[1743320208558,0.5570332,83212.0,83211.0,0.0326807]
[1743320209157,0.5570332,83212.0,83211.0,0.0004807]
[1743320209652,0.1962332,83212.0,83211.0,0.0004807]
[1743320211366,0.30422012,83212.0,83211.0,0.0004807]
[1743320212863,0.41866012,83212.0,83211.0,0.0004807]
[1743320215474,0.77946012,83212.0,83211.0,0.0004807]
[1743320216366,0.6714732,83212.0,83211.0,0.0004807]
[1743320221273,0.81555661,83212.0,83211.0,0.0004807]
[1743320224283,0.6714732,83212.0,83211.0,0.0004807]
[1743320226775,0.5570332,83212.0,83211.0,0.0004807]
[1743320226978,0.6712732,83212.0,83211.0,0.0004807]
[1743320227176,0.5570332,83212.0,83211.0,0.0004807]
[1743320227380,0.1962332,83212.0,83211.0,0.0004807]
[1743320228178,0.54486861,83212.0,83211.0,0.0004807]
[1743320229274,0.54486861,83212.0,83211.0,0.0952807]
[1743320229788,0.48396861,83212.0,83211.0,0.0952807]
[1743320230093,0.48396861,83212.0,83211.0,0.2154907]
[1743320230274,0.00296001,83212.0,83211.0,0.2161307]
[1743320230783,0.00296001,83212.0,83211.0,1.7161307]
[1743320230982,0.002,83212.0,83211.0,1.7161307]
[1743320231384,0.1222086,83212.0,83211.0,1.8310507]
[1743320232678,0.002,83212.0,83211.0,2.1918507]
[1743320232975,0.1222086,83212.0,83211.0,2.1918507]
[1743320233184,0.002,83212.0,83211.0,2.1918507]
[1743320235390,0.14411554,83216.0,83215.0,0.1202042]
[1743320235686,0.14411554,83216.0,83215.0,0.1209242]
[1743320236080,0.14507555,83216.0,83215.0,0.1209242]
[1743320236386,0.14411554,83216.0,83215.0,1.6820242]
[1743320236983,0.1202015,83217.0,83216.0,0.1202028]
[1743320237184,0.1202015,83217.0,83216.0,0.1819828]
[1743320237975,0.1527015,83217.0,83216.0,0.1819828]
[1743320238175,0.1547015,83217.0,83216.0,0.1819828]
[1743320238483,0.15774151,83217.0,83216.0,0.1819828]
[1743320239090,0.1567015,83217.0,83216.0,0.1819828]
[1743320240383,0.16849992,83217.0,83216.0,0.1819828]
[1743320240782,0.1567015,83217.0,83216.0,0.1819828]
[1743320246189,0.1567015,83217.0,83216.0,0.06178]
[1743320246395,0.1567015,83217.0,83216.0,0.1819828]
[1743320274231,0.0365,83217.0,83216.0,0.1819828]
[1743320275333,0.1567014,83217.0,83216.0,0.1819828]
[1743320275633,0.0365,83217.0,83216.0,0.1819828]
[1743320278242,0.0686,83217.0,83216.0,0.1819828]
[1743320278442,0.1888014,83217.0,83216.0,0.5427828]
[1743320283042,0.1888014,83217.0,83216.0,0.36148]
[1743320283244,0.1202042,83215.0,83214.0,0.36018934]
[1743320283443,0.1213642,83215.0,83214.0,0.36082934]
[1743320284348,0.1233642,83215.0,83214.0,0.36082934]
[1743320284947,0.1253642,83215.0,83214.0,0.48103504]
[1743320285848,0.1253642,83215.0,83214.0,0.1208457]
[1743320286433,0.1253642,83215.0,83214.0,1.6208457]
[1743320286434,0.00516,83215.0,83214.0,1.6208457]
[1743320286649,0.004,83215.0,83214.0,1.7165457]
[1743320287147,0.0646,83217.0,83216.0,0.1202028]
[1743320287337,0.06580001,83217.0,83216.0,0.1208828]
[1743320287851,0.18600141,83217.0,83216.0,1.63316054]
[1743320288039,0.1848014,83217.0,83216.0,1.63316054]
[1743320288550,0.0686,83217.0,83216.0,1.63316054]
[1743320289043,0.0686,83217.0,83216.0,1.69666054]
[1743320289850,0.1888014,83217.0,83216.0,1.69666054]
[1743320290246,0.1888014,83217.0,83216.0,1.6843828]
[1743320292952,0.1888014,83217.0,83216.0,2.0451828]
[1743320294859,0.1888014,83217.0,83216.0,1.6843828]
[1743320295157,0.1888014,83217.0,83216.0,2.0451828]
[1743320296353,0.1888014,83217.0,83216.0,1.6843828]
[1743320296754,0.1888014,83217.0,83216.0,1.7991828]
[1743320299455,0.1888014,83217.0,83216.0,1.7356828]
[1743320300347,0.1888014,83217.0,83216.0,1.7986828]
[1743320304862,0.0365,83217.0,83216.0,1.7986828]
[1743320305054,0.0317,83223.0,83222.0,0.1201941]
[1743320305364,0.18523271,83223.0,83222.0,0.1209141]
[1743320306358,0.19023271,83223.0,83222.0,0.1209141]
[1743320311159,0.1889927,83223.0,83222.0,0.1209141]
[1743320316766,0.1901527,83223.0,83222.0,0.1209141]
[1743320317165,0.06996,83223.0,83222.0,0.1209141]
[1743320317361,0.1901527,83223.0,83222.0,0.1209141]
[1743320317762,0.1901527,83223.0,83222.0,0.1517141]
[1743320318668,0.1901527,83223.0,83222.0,0.1819141]
[1743320319972,0.06996,83223.0,83222.0,0.1819141]
[1743320320357,0.0688,83223.0,83222.0,0.5427141]
[1743320320669,0.0688,83223.0,83222.0,0.1819141]
[1743320320871,0.0688,83223.0,83222.0,0.5427141]
[1743320322570,0.0688,83223.0,83222.0,0.1819141]
[1743320322771,0.0688,83223.0,83222.0,0.5427141]
[1743320324265,0.1889927,83223.0,83222.0,0.5427141]
[1743320324867,0.1889927,83223.0,83222.0,0.83042132]
[1743320328368,0.1889927,83223.0,83222.0,0.46962132]
[1743320328577,0.1889927,83223.0,83222.0,0.83042132]
[1743320329265,0.1889927,83223.0,83222.0,0.1819141]
[1743320329468,0.1889927,83223.0,83222.0,0.5427141]
[1743320329666,0.1889927,83223.0,83222.0,0.1819141]
[1743320329874,0.1889927,83223.0,83222.0,0.5427141]
[1743320332778,0.1901527,83223.0,83222.0,0.5427141]
[1743320334071,0.1901527,83223.0,83222.0,0.1819141]
[1743320334276,0.06996,83223.0,83222.0,0.5427141]
[1743320334471,0.0688,83223.0,83222.0,0.5427141]
[1743320335679,0.06996,83223.0,83222.0,0.5427141]
[1743320336174,0.1901527,83223.0,83222.0,0.5427141]
[1743320336572,0.1889927,83223.0,83222.0,0.5427141]
[1743320338186,0.1889927,83223.0,83222.0,0.5125141]
[1743320338475,0.1889927,83223.0,83222.0,0.36152]
[1743320338682,0.1889927,83223.0,83222.0,0.00072]
[1743320338872,0.1901527,83223.0,83222.0,0.00072]
[1743320341979,0.1201941,83222.0,83221.0,8e-05]
[1743320342185,0.1213541,83222.0,83221.0,0.00064]
[1743320342484,0.1829541,83222.0,83221.0,0.00064]
[1743320343780,0.1839541,83222.0,83221.0,0.00064]
[1743320344177,0.6026541,83222.0,83221.0,0.00064]
[1743320344378,0.1201956,83221.0,83220.0,8e-05]
[1743320344582,0.1213556,83221.0,83220.0,0.00072]
[1743320344782,0.1850556,83221.0,83220.0,0.00072]
[1743320345085,0.5458556,83221.0,83220.0,0.00072]
[1743320345288,0.5458556,83221.0,83220.0,8e-05]
[1743320345488,0.1850556,83221.0,83220.0,8e-05]
[1743320345679,0.5458556,83221.0,83220.0,0.00072]
[1743320345880,0.5458556,83221.0,83220.0,8e-05]
[1743320347088,0.5468556,83221.0,83220.0,8e-05]
[1743320350179,0.9655556,83221.0,83220.0,8e-05]
[1743320353682,1.07344289,83221.0,83220.0,8e-05]
[1743320356585,0.9655556,83221.0,83220.0,8e-05]
[1743320358292,1.0798356,83221.0,83220.0,8e-05]
[1743320358489,0.9655556,83221.0,83220.0,8e-05]
[1743320359994,0.6047556,83221.0,83220.0,8e-05]
[1743320364281,0.6348556,83221.0,83220.0,8e-05]
[1743320364484,0.1202042,83215.0,83200.0,0.10008]
[1743320364688,0.4209072,83208.0,83202.0,0.36018934]
[1743320364994,0.1202216,83203.0,83202.0,0.36134934]
[1743320365187,0.2359016,83203.0,83202.0,0.36134934]
[1743320365388,0.2985016,83203.0,83202.0,0.36134934]
[1743320367998,0.7172016,83203.0,83202.0,0.36134934]
[1743320368703,0.72919256,83203.0,83202.0,0.36134934]
[1743320369101,0.73019256,83203.0,83202.0,0.36134934]
[1743320369403,0.73019256,83203.0,83202.0,0.00116]
[1743320369590,0.120223,83202.0,83201.0,0.0312]
[1743320369787,0.121383,83202.0,83201.0,0.0312]
[1743320369991,0.153983,83202.0,83201.0,0.0312]
[1743320370302,0.184083,83202.0,83201.0,0.0312]
[1743320370694,0.544883,83202.0,83201.0,0.0312]
[1743320371197,0.545883,83202.0,83201.0,0.0639]
[1743320371995,0.546883,83202.0,83201.0,0.0639]
[1743320373408,0.186083,83202.0,83201.0,0.0639]
[1743320373702,0.965583,83202.0,83201.0,0.0639]
[1743320376411,0.604783,83202.0,83201.0,0.0639]
[1743320376606,0.965583,83202.0,83201.0,0.0639]
[1743320376903,0.604783,83202.0,83201.0,0.0639]
[1743320377102,0.965583,83202.0,83201.0,0.0639]
[1743320378003,0.604783,83202.0,83201.0,0.0639]
[1743320378200,0.965583,83202.0,83201.0,0.0639]
[1743320379809,0.1202245,83201.0,83200.0,0.1]
[1743320379995,0.54016451,83201.0,83200.0,0.1]
[1743320380201,0.1202461,83186.0,83179.0,0.00048089]
[1743320380400,0.4810461,83186.0,83185.0,0.21633636]
[1743320380606,0.48228611,83186.0,83185.0,0.21633636]
[1743320380808,0.48228611,83186.0,83185.0,0.27833636]
[1743320381202,0.54608611,83186.0,83185.0,0.27833636]
[1743320382208,0.54608611,83186.0,83185.0,0.06264]
[1743320382508,0.54608611,83186.0,83185.0,0.062]
[1743320382704,0.54608611,83186.0,83185.0,0.0311]
[1743320383504,0.54608611,83186.0,83185.0,0.0627]
[1743320385410,0.96478611,83186.0,83185.0,0.0627]
[1743320385814,0.60398611,83186.0,83185.0,0.0627]
[1743320386119,0.97377619,83186.0,83185.0,0.06334]
[1743320386313,0.97377619,83186.0,83185.0,0.0627]
[1743320389010,0.61297619,83186.0,83185.0,0.0627]
[1743320389215,0.97377619,83186.0,83185.0,0.0627]
[1743320390012,0.61297619,83186.0,83185.0,0.0627]
[1743320390217,0.97377619,83186.0,83185.0,0.0627]
[1743320391117,0.61297619,83186.0,83185.0,0.0627]
[1743320391716,0.97377619,83186.0,83185.0,0.0627]
[1743320392813,1.07910611,83186.0,83185.0,0.0627]
[1743320394921,1.07922611,83186.0,83185.0,0.0627]
[1743320395219,0.71842611,83186.0,83185.0,0.0627]
[1743320395408,1.07922611,83186.0,83185.0,0.0627]
[1743320395605,0.71842611,83186.0,83185.0,0.0627]
[1743320395818,0.96478611,83186.0,83185.0,0.0627]
[1743320396013,1.07918611,83186.0,83185.0,0.0627]
[1743320398513,0.71838611,83186.0,83185.0,0.0627]
[1743320398714,0.1202505,83183.0,83182.0,8e-05]
[1743320398922,0.1214105,83183.0,83182.0,0.00072]
[1743320399220,0.1214105,83183.0,83182.0,8e-05]
[1743320399625,0.1855105,83183.0,83182.0,8e-05]
[1743320399822,0.1202519,83182.0,83181.0,0.0313]
[1743320400023,0.1214119,83182.0,83181.0,0.06482]
[1743320400211,0.1214119,83182.0,83177.0,8e-05]
[1743320400212,0.1202548,83180.0,83176.0,0.21569636]
[1743320400412,0.1214148,83180.0,83179.0,0.00120089]
[1743320401421,0.1244148,83180.0,83179.0,0.00112089]
[1743320401826,0.5431148,83180.0,83179.0,0.00112089]
[1743320402124,0.5431148,83180.0,83179.0,0.00048089]
[1743320402327,0.5431148,83180.0,83179.0,0.00164089]
[1743320402826,0.5461148,83180.0,83179.0,0.00164089]
[1743320403013,0.5461148,83180.0,83179.0,0.00048089]
[1743320403824,0.55818203,83180.0,83179.0,0.00048089]
[1743320404024,0.91898203,83180.0,83179.0,0.00048089]
[1743320404231,0.55818203,83180.0,83179.0,0.00048089]
[1743320404531,0.91898203,83180.0,83179.0,0.00048089]
[1743320407231,0.98138203,83180.0,83179.0,0.00048089]
[1743320410931,0.62058203,83180.0,83179.0,0.00048089]
[1743320411229,0.98138203,83180.0,83179.0,0.00048089]
[1743320411629,1.09558203,83180.0,83179.0,0.00048089]
[1743320412734,0.73478203,83180.0,83179.0,0.00048089]
[1743320412924,1.09558203,83180.0,83179.0,0.00048089]
[1743320413330,0.73478203,83180.0,83179.0,0.00048089]
[1743320413723,1.09558203,83180.0,83179.0,0.00048089]
[1743320414524,0.73478203,83180.0,83179.0,0.00048089]
[1743320414725,1.09558203,83180.0,83179.0,0.00048089]
[1743320414925,1.09558203,83180.0,83179.0,0.00120089]
[1743320415125,1.09558203,83180.0,83179.0,0.00048089]
[1743320415326,0.73478203,83180.0,83179.0,0.00048089]
[1743320415527,1.09558203,83180.0,83179.0,0.00048089]
[1743320419233,1.09558203,83180.0,83179.0,0.03228089]
[1743320419736,0.73478203,83180.0,83179.0,0.03228089]
[1743320420036,1.09558203,83180.0,83179.0,0.03292089]
[1743320420332,1.09558203,83180.0,83179.0,0.03228089]
[1743320420537,0.73478203,83180.0,83179.0,0.03228089]
[1743320420838,1.09558203,83180.0,83179.0,0.03348089]
[1743320421136,0.73478203,83180.0,83179.0,0.03228089]
[1743320421336,1.09558203,83180.0,83179.0,0.03296089]
[1743320421537,1.09558203,83180.0,83179.0,0.03228089]
[1743320422236,0.73478203,83180.0,83179.0,0.03228089]
[1743320422437,1.09558203,83180.0,83179.0,0.03292089]
[1743320422640,1.09558203,83180.0,83179.0,0.03228089]
[1743320424442,0.73478203,83180.0,83179.0,0.03228089]
[1743320424627,0.73478203,83180.0,83179.0,0.03292089]
[1743320425129,1.09558203,83180.0,83179.0,0.03292089]
[1743320425332,1.09558203,83180.0,83179.0,0.03228089]
[1743320426137,0.73478203,83180.0,83179.0,0.03228089]
[1743320426338,1.09558203,83180.0,83179.0,0.03292089]
[1743320426539,1.09558203,83180.0,83179.0,0.03228089]
[1743320427045,1.23969757,83180.0,83179.0,0.03228089]
[1743320427430,0.87889757,83180.0,83179.0,0.03228089]
[1743320427634,1.23969757,83180.0,83179.0,0.03228089]
[1743320428238,0.87889757,83180.0,83179.0,0.03228089]
[1743320428437,1.23969757,83180.0,83179.0,0.03228089]
[1743320429137,1.23969757,83180.0,83179.0,0.00048089]
[1743320429335,0.87889757,83180.0,83179.0,0.00048089]
[1743320429543,1.23969757,83180.0,83179.0,0.00048089]
[1743320429842,1.09558203,83180.0,83179.0,0.00048089]
[1743320430035,0.73478203,83180.0,83179.0,0.00048089]
[1743320430241,1.09558203,83180.0,83179.0,0.00116089]
[1743320430538,0.73478203,83180.0,83179.0,0.00048089]
[1743320430741,1.09558203,83180.0,83179.0,0.00112089]
[1743320431044,1.09558203,83180.0,83179.0,0.03168089]
[1743320432942,0.73478203,83180.0,83179.0,0.03168089]
[1743320433139,1.09558203,83180.0,83179.0,0.03232089]
[1743320433344,1.09558203,83180.0,83179.0,0.03168089]
[1743320435040,0.73478203,83180.0,83179.0,0.03168089]
[1743320435245,1.09558203,83180.0,83179.0,0.03232089]
[1743320435441,0.73478203,83180.0,83179.0,0.03168089]
[1743320435643,1.09558203,83180.0,83179.0,0.03232089]
[1743320435842,1.09558203,83180.0,83179.0,0.03168089]
[1743320437348,1.09558203,83180.0,83179.0,0.00048089]
[1743320438046,1.09558203,83180.0,83179.0,0.00112089]
[1743320439738,0.73478203,83180.0,83179.0,0.00112089]
[1743320439941,1.09558203,83180.0,83179.0,0.00112089]
[1743320440141,0.73478203,83180.0,83179.0,0.00048089]
[1743320440343,1.09558203,83180.0,83179.0,0.00120089]
[1743320440644,1.09558203,83180.0,83179.0,0.00048089]
[1743320441752,0.73478203,83180.0,83179.0,0.00048089]
[1743320442049,0.98138203,83180.0,83179.0,0.00116089]
[1743320442241,1.09558203,83180.0,83179.0,0.00048089]
[1743320444250,0.73478203,83180.0,83179.0,0.00048089]
[1743320444450,0.73478203,83180.0,83179.0,0.00112089]
[1743320444640,1.09558203,83180.0,83179.0,0.00112089]
[1743320444847,1.09558203,83180.0,83179.0,0.00048089]
[1743320447855,0.98138203,83180.0,83179.0,0.00048089]
[1743320448047,1.09558203,83180.0,83179.0,0.00048089]
[1743320448654,0.62058203,83180.0,83179.0,0.00048089]
[1743320448858,1.09558203,83180.0,83179.0,0.00116089]
[1743320449056,1.09558203,83180.0,83179.0,0.00048089]
[1743320449355,0.73478203,83180.0,83179.0,0.00048089]
[1743320449559,0.73478203,83180.0,83179.0,0.00112089]
[1743320449743,1.09558203,83180.0,83179.0,0.00112089]
[1743320449943,1.09558203,83180.0,83179.0,0.00048089]
[1743320450554,0.73478203,83180.0,83179.0,0.00048089]
[1743320450859,1.09558203,83180.0,83179.0,0.00112089]
[1743320451157,1.09558203,83180.0,83179.0,0.00048089]
[1743320454161,0.73478203,83180.0,83179.0,0.00048089]
[1743320454351,1.09558203,83180.0,83179.0,0.00112089]
[1743320454647,1.09558203,83180.0,83179.0,0.00048089]
[1743320455857,0.73478203,83180.0,83179.0,0.00048089]
[1743320456057,0.73478203,83180.0,83179.0,0.00112089]
[1743320456258,1.09558203,83180.0,83179.0,0.00112089]
[1743320456460,1.09558203,83180.0,83179.0,0.00048089]
[1743320457055,0.73478203,83180.0,83179.0,0.00048089]
[1743320457257,1.09558203,83180.0,83179.0,0.00112089]
[1743320457553,1.09558203,83180.0,83179.0,0.00048089]
[1743320457953,0.73478203,83180.0,83179.0,0.00048089]
[1743320458154,0.73478203,83180.0,83179.0,0.00116089]
[1743320458362,1.09558203,83180.0,83179.0,0.00116089]
[1743320458555,1.09558203,83180.0,83179.0,0.00048089]
[1743320459157,0.73478203,83180.0,83179.0,0.00048089]
[1743320459352,1.09558203,83180.0,83179.0,0.00116089]
[1743320459562,1.09558203,83180.0,83179.0,0.00048089]
[1743320460163,1.27497462,83180.0,83179.0,0.00048089]
[1743320460569,0.91417462,83180.0,83179.0,0.00048089]
[1743320460760,1.27497462,83180.0,83179.0,0.00048089]
[1743320461066,1.12987462,83180.0,83179.0,0.00048089]
[1743320461268,1.24407462,83180.0,83179.0,0.00048089]
[1743320463363,1.12987462,83180.0,83179.0,0.00048089]
[1743320463763,0.95048203,83180.0,83179.0,0.00048089]
[1743320464358,0.95048203,83180.0,83179.0,0.06398089]
[1743320466364,0.58968203,83180.0,83179.0,0.06398089]
[1743320466562,0.95048203,83180.0,83179.0,0.06462089]
[1743320466771,0.95048203,83180.0,83179.0,0.06398089]
[1743320468272,0.95048203,83180.0,83179.0,0.00048089]
[1743320470367,0.95048203,83180.0,83179.0,0.06288089]
[1743320471066,0.98198203,83180.0,83179.0,0.06288089]
[1743320477073,0.62118203,83180.0,83179.0,0.06288089]
[1743320477379,0.98198203,83180.0,83179.0,0.06356089]
[1743320477679,0.62118203,83180.0,83179.0,0.06288089]
[1743320477878,0.98198203,83180.0,83179.0,0.06352089]
[1743320478072,0.98198203,83180.0,83179.0,0.06288089]
[1743320479179,0.62118203,83180.0,83179.0,0.06288089]
[1743320479381,0.98198203,83180.0,83179.0,0.06352089]
[1743320479580,0.98198203,83180.0,83179.0,0.06288089]
[1743320480573,0.62118203,83180.0,83179.0,0.06288089]
[1743320480877,0.98198203,83180.0,83179.0,0.06364089]
[1743320481077,0.98198203,83180.0,83179.0,0.06288089]
[1743320482176,0.62118203,83180.0,83179.0,0.06288089]
[1743320482374,0.98198203,83180.0,83179.0,0.06404089]
[1743320482574,0.98198203,83180.0,83179.0,0.06288089]
[1743320490274,0.62118203,83180.0,83179.0,0.06288089]
[1743320490474,0.62118203,83180.0,83179.0,0.06360089]
[1743320490675,0.98198203,83180.0,83179.0,0.06288089]
[1743320491184,0.98198203,83180.0,83179.0,0.03208089]
[1743320492174,0.98198203,83180.0,83179.0,0.00048089]
[1743320492785,1.16137462,83180.0,83179.0,0.00048089]
[1743320494290,0.80057462,83180.0,83179.0,0.00048089]
[1743320494477,1.16137462,83180.0,83179.0,0.00048089]
[1743320495484,0.80057462,83180.0,83179.0,0.00048089]
[1743320495786,1.16137462,83180.0,83179.0,0.00048089]
[1743320496179,0.98198203,83180.0,83179.0,0.00048089]
[1743320496497,0.62118203,83180.0,83179.0,0.00048089]
[1743320496689,0.98198203,83180.0,83179.0,0.00112089]
[1743320496983,0.98198203,83180.0,83179.0,0.00048089]
[1743320499486,1.04045282,83180.0,83179.0,0.00048089]
[1743320500382,0.67965282,83180.0,83179.0,0.00048089]
[1743320500583,1.04045282,83180.0,83179.0,0.00048089]
[1743320501283,0.67965282,83180.0,83179.0,0.00048089]
[1743320501481,1.04045282,83180.0,83179.0,0.00048089]
[1743320503092,0.98198203,83180.0,83179.0,0.00048089]
[1743320506789,0.62118203,83180.0,83179.0,0.00048089]
[1743320507084,0.98198203,83180.0,83179.0,0.00048089]
[1743320509586,0.62118203,83180.0,83179.0,0.00048089]
[1743320509893,0.98198203,83180.0,83179.0,0.00048089]
[1743320510587,1.04045247,83180.0,83179.0,0.00048089]